Cogmind - Beta 12 X1 @@@ ROGUE MODE // 2022.07.04 @ 05:38:42 Player: youngster Result: Destroyed by S-10 Pest with Light Assault Rifle Performance ------------- Evolutions (0) 0 Regions Visited (2) 400 Robots Destroyed (18) 90 Value Destroyed (508) 508 Prototype IDs (0) 0 Alien Tech Used (0) 0 Bonus (0) 0 TOTAL SCORE: 998 Bonus ------- None Cogmind --------- Core Integrity 0/250 Matter 177/300 Energy 105/125 System Corruption 0% Temperature Cool (0) Movement Core (800) Ox15 Location -10/Mines Parts ------- > --- POWER (1) -------- Light Ion Engine > --- PROPULSION (2) --- (None) > --- UTILITY (2) ------ High-capacity Storage Unit Propulsion Shielding > --- WEAPON (2) ------- Light Assault Rifle Grenade Launcher > --- INVENTORY (20) --- Light Treads Medium Matter Pod (100) Power Shielding Propulsion Shielding Tractor Beam EM Pulse Gun Assault Rifle Light Assault Rifle Light Assault Rifle Mace Peak State ------------ > --- POWER ------------ Light Nuclear Core > --- PROPULSION ------- Light Treads Light Treads > --- UTILITY ---------- High-capacity Storage Unit Propulsion Shielding > --- WEAPON ----------- Light Assault Rifle Mace > --- INVENTORY -------- Light Ion Engine Light Treads Compact Wheel Medium Matter Pod Power Shielding Propulsion Shielding Propulsion Shielding Tractor Beam EM Pulse Gun EM Pulse Gun EM Pulse Gun EM Pulse Gun Assault Rifle Light Assault Rifle Light Assault Rifle Light Assault Rifle Grenade Launcher [Rating: 11] Favorites ----------- Power Light Nuclear Core Engine Light Ion Engine Power Core Light Nuclear Core Propulsion Light Treads Treads Light Treads Wheel Compact Wheel Utility High-capacity Storage Unit Storage High-capacity Storage Unit Protection Propulsion Shielding Weapon Light Assault Rifle Energy Gun EM Pulse Gun Ballistic Gun Light Assault Rifle Launcher Grenade Launcher Impact Weapon Mace Build | -11 -10 -10 ------- Run | Scr Mat Min Slots Evolved . | . . . Power . | . . . Propulsion . | . . . Utility . | . . . Weapon . | . . . Parts Attached 29 | 6 8 15 Power 4 | 1 2 1 Engine 2 | 1 . 1 Core 2 | . 2 . Reactor . | . . . Propulsion 6 | 2 1 3 Treads 5 | 2 1 2 Leg . | . . . Wheel 1 | . . 1 Hover . | . . . Flight . | . . . Utility 4 | 1 2 1 Device . | . . . Storage 2 | 1 1 . Processor . | . . . Hackware . | . . . Protection 2 | . 1 1 Artifact . | . . . Weapon 15 | 2 3 10 Energy Gun 7 | 1 1 5 Energy Cannon . | . . . Ballistic Gun 4 | 1 1 2 Ballistic Cannon . | . . . Launcher 3 | . . 3 Special Weapon . | . . . Impact Weapon 1 | . 1 . Slashing Weapon . | . . . Piercing Weapon . | . . . Special Melee Weapon . | . . . Unidentified Prototypes . | . . . Parts Lost 10 | . 1 9 Power 2 | . 1 1 Propulsion 3 | . . 3 Utility 1 | . . 1 Weapon 4 | . . 4 Highest Loss Streak 9 | . 1 9 To Critical Strikes . | . . . Average Slot Usage (%) 93 | . 94 84 Engine 4 | . 4 4 Core 9 | . 9 4 Treads 26 | . 28 13 Storage 14 | . 14 14 Protection 9 | . 9 14 Energy Gun 4 | . 4 6 Ballistic Gun 20 | . 20 17 Impact Weapon 2 | . 2 . Naked Turns . | . . . Heaviest Build 49 | 12 49 47 Greatest Support 40 | 40 40 20 Greatest Overweight (x) 2 | . 1 2 Average Overweight (x) . | . . 2 Largest Inventory Capacity 20 | 8 20 20 Average Capacity 18 | 6 19 20 Most Carried 18 | 3 17 18 Average Carried 12 | 2 12 14 Final Capacity 20 | 8 20 20 Final Carried 17 | 3 17 10 Class Distribution -------------------- 100% | Mutant Dominant Class ---------------- Mutant | -10/Materials Mutant | -10/Mines Resources | -11 -10 -10 ----------- Run | Scr Mat Min Matter Collected 697 | 242 406 49 Remotely . | . . . Salvage Created 779 | . 672 107 Parts 38 | . 38 . Haulers Intercepted 1 | . 1 . Recyclers Shooed 1 | . 1 . Parts Field Recycled . | . . . Retrieved Matter . | . . . Parts Self-Destructed . | . . . Prevented . | . . . Kills | -11 -10 -10 ------- Run | Scr Mat Min Combat Hostiles Destroyed 28 | . 15 13 Guns 20 | . 15 5 AOE 8 | . . 8 Classes Destroyed 5 | . 4 1 Hauler 1 | . 1 . Watcher 2 | . 2 . Swarmer 3 | . 3 . Grunt 12 | . 12 . Assembled 13 | . . 13 Best Kill Streak 9 | . 5 9 Combat Bots Only 9 | . 5 9 Max Kills in Single Turn 6 | . 1 6 Gunslinging . | . . . Exploded 6 | . . 6 Melee . | . . . Uniques/NPCs Destroyed . | . . . Combat | -11 -10 -10 -------- Run | Scr Mat Min Damage Taken 1425 | . 518 907 Core 251 | . 48 203 Absorbed by Shields . | . . . Redirected to Shielding 97 | . 15 82 Regen/Repaired (Parts) 47 | . 47 . Core Remaining (%) 100 | 100 . . Volleys Fired 92 | . 62 30 Largest 2 | . 2 2 Hottest 60 | . 60 60 Shots Fired 177 | . 124 53 Gun 173 | . 124 49 Cannon . | . . . Launcher 4 | . . 4 Special . | . . . Kinetic 130 | . 103 27 Thermal . | . . . Explosive 4 | . . 4 Electromagnetic 43 | . 21 22 Robot Hit Streak 12 | . 12 9 Robot Miss Streak 4 | . 4 3 Penetration Max . | . . . Secondary Targets 4 | . . 4 Max Gunslinging Chain 1 | . . 1 Shots Hit Robots 116 | . 81 35 Core Hits 62 | . 34 28 Critical Kills 2 | . 2 . Critical Parts Destroyed 2 | . 2 . Critical Strikes 4 | . 4 . Destroy 4 | . 4 . Melee Attacks 3 | . 3 . Impact 3 | . 3 . Slashing . | . . . Piercing . | . . . Sneak Attacks . | . . . Combat Hostiles . | . . . Follow-up Attacks . | . . . Damage Inflicted 1803 | . 918 885 Guns 1242 | . 918 324 Cannons . | . . . Explosions 561 | . . 561 Melee . | . . . Ramming . | . . . Kinetic 885 | . 714 171 Thermal . | . . . Explosive 561 | . . 561 Electromagnetic 357 | . 204 153 Impact . | . . . Slashing . | . . . Piercing . | . . . Highest Corruption . | . . . Average Corruption . | . . . Corruption Purged . | . . . Corruption Blocked . | . . . Overload Shots . | . . . Overflow Damage . | . . . Projectiles . | . . . Explosions . | . . . Melee . | . . . Knockbacks . | . . . Impact . | . . . Kinetic . | . . . Secondary . | . . . Self-Inflicted Damage 74 | . . 74 Shots 3 | . . 3 Rammed 1 | . 1 . Targets Rammed 1 | . 1 . Kicked . | . . . Crushed . | . . . Highest Temperature 101 | . 72 101 Average Temperature 32 | . 24 46 Received Heat Transfer 382 | . 225 157 Siege Activations . | . . . Robots Corrupted . | . . . Combat Hostiles . | . . . Parts Fried 2 | . 2 . Impact Corruptions . | . . . Robots Melted . | . . . Combat Hostiles . | . . . Parts Melted . | . . . Heat Transferred . | . . . Parts Sabotaged . | . . . Parts Stolen . | . . . Parts Stripped . | . . . Power Chain Reactions . | . . . Missiles Intercepted . | . . . Alert | -11 -10 -10 ------- Run | Scr Mat Min Peak Influence 277 | . 277 61 Initial 34 | . . 34 Average 127 | . 140 35 Maximum Alert Level 1 | . 1 . Low Security (%) 92 | 100 91 100 Level 1 7 | . 8 . Level 2 . | . . . Level 3 . | . . . Level 4 . | . . . Level 5 . | . . . High Security . | . . . Max Security . | . . . Squads Dispatched 5 | . 5 . Investigation 3 | . 3 . Extermination . | . . . Reinforcement 2 | . 2 . Assault . | . . . Garrison . | . . . Intercept . | . . . Searches Triggered . | . . . Construction Impeded . | . . . Haulers Reinforced . | . . . Active Scanning Responses . | . . . Cargo Convoy Interrupts . | . . . Stealth | -11 -10 -10 --------- Run | Scr Mat Min Distress Signals 2 | . 2 . Communications Jammed . | . . . Distress Signals . | . . . Times Spotted 42 | . 23 19 Peak Tracking Total 10 | . 5 10 Tactical Retreats . | . . . Traps | -11 -10 -10 ------- Run | Scr Mat Min Traps Triggered 1 | . 1 . Indirectly . | . . . Trap Hack Attempts . | . . . Triggered . | . . . Disarmed . | . . . Reprogrammed . | . . . Reused . | . . . Traps Extracted . | . . . Installed . | . . . Triggered . | . . . Machines | -11 -10 -10 ---------- Run | Scr Mat Min Machines Disabled 1 | . 1 . Max in Single Turn 1 | . 1 . Machines Sabotaged . | . . . Garrisons Compromised . | . . . Overloaded Fab Kills . | . . . Hacking | -11 -10 -10 --------- Run | Scr Mat Min Machines Accessed 9 | . 9 . Terminals 6 | . 6 . Fabricators . | . . . Repair Stations 1 | . 1 . Recycling Units 2 | . 2 . Scanalyzers . | . . . Garrison Access . | . . . Total Hacks 23 | . 23 . Successful 16 | . 16 . Failed 6 | . 6 . Catastrophic . | . . . Database Lockouts 1 | . 1 . Manual 11 | . 11 . Terminals 18 | . 18 . Fabricators . | . . . Repair Stations 3 | . 3 . Recycling Units 2 | . 2 . Scanalyzers . | . . . Garrison Access . | . . . Terminal Hacks 11 | . 11 . Part Schematic 1 | . 1 . Robot Analysis 6 | . 6 . Emergency Access Points 1 | . 1 . Locate Traps 2 | . 2 . Hauler Manifests 1 | . 1 . Fabricator Hacks . | . . . Repair Station Hacks 2 | . 2 . Scan Component 1 | . 1 . Repair 1 | . 1 . Recycling Unit Hacks . | . . . Scanalyzer . | . . . Garrison Access Hacks . | . . . Unauthorized Hacks 3 | . 3 . Terminals 1 | . 1 . Operators 1 | . 1 . Fabricators . | . . . Repair Stations . | . . . Recycling Units 2 | . 2 . Tunnel 2 | . 2 . Scanalyzers . | . . . Garrison Access . | . . . Data Cores Recovered . | . . . Used . | . . . Hacking Detections 6 | . 6 . Full Trace Events . | . . . Feedback Events . | . . . Feedback Blocked . | . . . Robot Schematics Acquired . | . . . Robots Built . | . . . Authchips . | . . . Time . | . . . Total Robot Build Rating . | . . . Part Schematics Acquired 1 | . 1 . Parts Built . | . . . Authchips . | . . . Time . | . . . Total Part Build Rating . | . . . Parts Repaired 1 | . 1 . Time 38 | . 38 . Parts Recycled . | . . . Recycled Matter . | . . . Retrieved Matter . | . . . Retrieved Components . | . . . Parts Scanalyzed . | . . . Part Schematics Acquired . | . . . Parts Damaged . | . . . Bothacking | -11 -10 -10 ------------ Run | Scr Mat Min Used RIF Installer . | . . . Robots Hacked . | . . . Non-combat . | . . . Combat . | . . . Robot Hacks Applied . | . . . Relay Couplers Released . | . . . Fabnet Peak Effective % . | . . . Robots Rewired . | . . . Allies Hacked . | . . . Hacks Repelled . | . . . Allies | -11 -10 -10 -------- Run | Scr Mat Min Total Allies . | . . . Largest Group . | . . . Highest-Rated Group . | . . . Highest-Rated Ally . | . . . Total Orders . | . . . Ally Attacks . | . . . Total Damage . | . . . Kills . | . . . Allies Corrupted . | . . . Allies Melted . | . . . Intel | -11 -10 -10 ------- Run | Scr Mat Min Robot Analysis Total 6 | . 6 . Derelict Logs Recovered . | . . . Drone Launches . | . . . Drone Recoveries . | . . . Exploration | -11 -10 -10 ------------- Run | Scr Mat Min Turns Passed 2023 | 72 1810 141 Spaces Moved 707 | 41 650 16 Core 4 | 4 . . Treads 695 | 37 650 8 Legs . | . . . Wheels 8 | . . 8 Hover . | . . . Flight . | . . . Fastest Speed 50 | 50 160 130 Average Speed 229 | 149 234 225 Slowest Speed 320 | 160 240 320 Overloaded Moves . | . . . Propulsion Burnouts . | . . . Robots Hopped . | . . . Cave-ins Triggered . | . . . Exploration Rate (%) 35 | 3 99 5 Regions Visited 2 Branch Regions 1 Pre-discovered Areas 2 | . 2 . Known Exits Taken . | . . . Unknown Exits Taken 2 | 1 1 . Scrap Searched . | . . . Spaces Dug 12 | . 3 9 Terrain Destroyed 42 | . 3 39 Melee 3 | . 3 . Projectile . | . . . AOE 39 | . . 39 Terrain Rammed . | . . . Walls Destroyed . | . . . Machines Disabled . | . . . Actions | -11 -10 -10 --------- Run | Scr Mat Min Total 932 | 49 811 72 Wait 81 | . 73 8 Move 705 | 40 649 16 Hop . | . . . Pick Up 16 | 3 13 . Fast Attach 10 | 6 4 . Attach 11 | . 1 10 Detach 4 | . 1 3 Swap 8 | . 3 5 Drop 1 | . 1 . Fire 92 | . 62 30 Melee 3 | . 3 . Ram . | . . . Kick . | . . . Crush 1 | . 1 . Escape Stasis . | . . . Rewire . | . . . Trap . | . . . Miscellaneous . | . . . Route ------- -11/Scrapyard -10/Materials (discovered 4 exits: [*Mat x3] / [*Min]) -10/Mines History --------- Turn | Location | Event 12 | -11/Scrapyard | Discovered new exit (range 16) 73 | -11/Scrapyard | Entered Materials 311 | -10/Materials | Build established: Mutant 522 | -10/Materials | Discovered new exit (range 13) 741 | -10/Materials | Discovered new exit (range 15) 958 | -10/Materials | Central database locked down 1072 | -10/Materials | Discovered new exit (range 16) 1624 | -10/Materials | Repaired Lgt. Nuclear Core 1650 | -10/Materials | Discovered new exit (range 16) 1883 | -10/Materials | Entered Mines 1884 | -10/Mines | Assembled infested the area 1889 | -10/Mines | Assisted by a Guerilla fighting off Assembled 1899 | -10/Mines | Met a Derelict bent on vengeance 1961 | -10/Mines | Core integrity fell below 50% 1993 | -10/Mines | Core integrity fell below 20% 2014 | -10/Mines | Destroyed 9 combat bots 2018 | -10/Mines | Lost 9 parts (1p3n1u4w) 2024 | -10/Mines | Destroyed by S-10 Pest with Light Assault Rifle Last Messages --------------- 01971_ as-68335 destroyed. 01971_ as-42802 destroyed. 01971_ as-38320 destroyed. 01971_ as-37297 destroyed. 01971_ as-40262 destroyed. 01971_ as-49187 destroyed. 01973_ as-99301 destroyed. 01973_ as-92589 destroyed. 01974_ R-06 Scavenger collects Flexi-carbon Leg. 01976_ R-06 Scavenger collects Armor Integrity Analyzer. 01978_ R-06 Scavenger collects Fission Core. 01979_ R-06 Scavenger collects Bore Cannon. 01982_ Lgt. Treads destroyed. 01982_ R-06 Scavenger collects Targeting Computer. 01984_ EM Pulse Gun destroyed. 01984_ Com. Wheel destroyed. 01987_ EM Pulse Gun destroyed. 01990_ The unstable cave ceiling collapses. 01993_ as-62760 destroyed. 01996_ Acquired 13 matter. Map ----- +----------------------------------------------------+ | ???????????????????????????????????????????????? | | ???????????????????????????????????????????????? | | ???????????????????????????????????????????????? | | ???????????????????????????????????????????????? | | ???????????????????????????????????????????????? | | ???????????????????????????????????????????????? | | ???????????????????????????????????????????????? | | ???????????????????????????????????????????????? | | ???????????????????????????????????????????????? | | ???????????????????????????????????????????????? | | ???????????????????????????????????????????????? | | ???????????????????????????????????????????????? | | ???????????????????????????????????????????????? | | ???????????????????????????????????????????????? | | ???????????????????????????????????????????????? | | ???????????????????????????????????????????????? | | ???????????????????????????????????????????????? | | ???????????????????????????????????????????????? | | ???????????????????????????????????????????????? | | ?????????????######????????????????????????????? | | ?????????????# # ###??????????????????????????? | | ?????????##### #??????????????????????????? | | ????????## ## # #####??????????????????????? | | ???????## %% #??????????????????????? | | ???????# % ### #??????????????????????? | | ??? % # #?#@#??????????????????????? | | ?# # # ####?#s#??????????????????????? | | ?# %%% #####????? r??????????????????????? | | ?# % ######????????? s??????????????????????? | | ?### #??????????????# s?????????????????????? | | ??# ##???????????????# ?????????????????????? | | ??#??????????????????## ????????????????????? | | ??????????????????????## ????????????????????? | | ????????????????????????# ???????????????????? | | ????????????????????????? ???????????????????? | | ?????????????????????????# #??????????????????? | | ??????????????????????????###??????????????????? | | ???????????????????????????????????????????????? | | ???????????????????????????????????????????????? | | ???????????????????????????????????????????????? | | ???????????????????????????????????????????????? | | ???????????????????????????????????????????????? | | ???????????????????????????????????????????????? | | ???????????????????????????????????????????????? | | ???????????????????????????????????????????????? | | ???????????????????????????????????????????????? | | ???????????????????????????????????????????????? | | ???????????????????????????????????????????????? | | ???????????????????????????????????????????????? | | | +----------------------------------------------------+ Best States ------------- Heat Dissipation 25 Energy Generation 14 Energy Capacity 160 Matter Stores 300 Matter Capacity 300 Sight Range 16 Terrain Scan Density 10 Propulsion Shielding 33 Evasion (%) 40 Recoil Reduction 2 Item Schematics ----------------- Huge Storage Unit | -10/Materials | Hacked Robot Schematics ------------------ None Fabricated ------------ Nothing Alien Tech Used ----------------- None Achievements -------------- None Challenges ------------ None Game ------ Seed GravityGrapheneEdition Manual? 0 Play Time 00:18:12 Cumulative 314.1 hours Start 2022.07.04 @ 05:23:35 End 2022.07.04 @ 05:38:42 Sessions 1 Manual Loads 0 Difficulty Rogue Special Mode None Game No. 142 Rogue 142 Adventurer 0 Explorer 0 Win Type - Total 8 Types 5/0/1/1/0/0/0/1/0 Lore% 88 Gallery% 90 Achievement% 70 Wizard Run 0 Options --------- ASCII 1 Keyboard 1 Movement Vi Keybinds 0 Fullscreen 2 Font 18/Cog Map View 76x50 Tactical HUD 1 Map Filters NONE Filters NONE Steam 0 RUN: 8b68d90a-1d73-4084-b490-7a294768acfe